bitfinex/quotes_ETHUSD_20240707
["timestamp","ask_amount","ask_price","bid_price","bid_amount"]
[1720366058902,0.70332567,2979.7,2979.3,2.34952]
[1720366059085,0.70332567,2979.6,2979.3,2.34952]
[1720366059679,0.70332567,2979.6,2979.1,2.34964]
[1720366060021,0.70332567,2979.6,2979.2,2.34962]
[1720366060022,0.70332567,2979.5,2979.2,2.34962]
[1720366060399,1.05570032,2979.6,2979.1,4.69928]
[1720366060400,0.70332567,2979.4,2979.1,4.69928]
[1720366060569,0.70332567,2979.4,2979.1,2.34964]
[1720366060765,0.70332567,2979.4,2979.1,2.34968]
[1720366061011,2.3155,2979.3,2979.1,4.69936]
[1720366061306,2.3155,2979.3,2979.2,2.34962]
[1720366061871,0.70332567,2979.4,2979.2,2.34962]
[1720366062071,0.70332567,2979.4,2979.1,2.34968]
[1720366062299,0.70332567,2979.4,2979.1,2.34963]
[1720366062518,0.70332567,2979.4,2979.2,2.34957]
[1720366063612,0.70332567,2979.4,2979.1,2.34963]
[1720366063830,0.70332567,2979.4,2979.1,4.69928]
[1720366064047,0.70332567,2979.4,2979.2,2.34961]
[1720366064532,0.70332567,2980.1,2979.5,2.34931]
[1720366064930,0.70327773,2980.0,2979.3,4.69899]
[1720366065093,2.3155,2979.8,2979.4,0.06712009]
[1720366065541,2.3155,2979.8,2979.6,2.34928]
[1720366066494,2.3155,2979.8,2979.7,2.34922]
[1720366066834,5.3155,2980.1,2979.5,2.34937]
[1720366067034,1.0549166,2980.0,2979.4,2.34945]
[1720366067195,2.6549166,2979.9,2979.5,2.34936]
[1720366067395,2.6549166,2979.9,2979.5,4.69872]
[1720366067597,2.6549166,2979.9,2979.5,4.69869]
[1720366067929,2.6549166,2979.9,2979.5,2.34932]
[1720366068231,2.6549166,2979.9,2979.6,2.34929]
[1720366068998,1.0549166,2979.9,2979.7,2.34918]
[1720366069197,1.0549166,2980.1,2979.7,4.69833]
[1720366069515,1.0549166,2980.1,2979.8,2.34914]
[1720366070129,1.0549166,2980.1,2979.9,2.34906]
[1720366070337,2.6549166,2980.2,2979.9,2.34906]
[1720366070836,2.65492442,2980.2,2979.9,2.34906]
[1720366072641,2.65492442,2980.2,2979.2,2.277]
[1720366072642,2.65492442,2980.2,2980.0,2.34894]
[1720366072942,1.6,2980.2,2980.0,2.34894]
[1720366073142,2.65492442,2980.2,2980.0,2.34894]
[1720366073954,1.6,2980.2,2980.0,2.34894]
[1720366074103,1.6,2980.2,2979.8,2.34911]
[1720366074104,2.65504656,2980.2,2979.8,2.34911]
[1720366074308,1.05504656,2980.1,2979.8,2.34911]
[1720366074608,1.05509231,2980.1,2979.8,2.34911]
[1720366075501,5.3155,2980.0,2979.3,2.34953]
[1720366075710,1.05509231,2979.6,2979.3,2.34953]
[1720366076016,3.47825919,2979.5,2979.0,2.3497]
[1720366076222,2.2178515,2979.4,2979.0,2.3497]
[1720366076524,2.2179573,2979.3,2978.8,2.34988]
[1720366076707,1.05509231,2979.3,2978.8,2.34988]
[1720366076904,1.05509231,2979.3,2978.9,2.34981]
[1720366077100,1.05509231,2979.2,2978.9,2.34981]
[1720366077315,1.05509231,2979.3,2978.9,2.34981]
[1720366077513,1.05509231,2979.3,2978.7,2.34997]
[1720366077836,4.05509231,2979.1,2978.6,1.0]
[1720366078038,2.21801615,2979.0,2978.6,1.0]
[1720366078226,1.05509231,2979.0,2978.6,1.0]
[1720366078551,1.05509231,2978.9,2978.6,1.0]
[1720366079442,1.05509231,2978.9,2978.7,2.35]
[1720366079631,1.05509231,2979.0,2978.7,2.35]
[1720366080818,1.05509231,2979.0,2978.6,1.0]
[1720366081135,2.21815597,2978.9,2978.6,1.0]
[1720366081338,1.05509231,2979.1,2978.9,2.3498]
[1720366081508,1.40678975,2979.2,2978.9,2.3498]
[1720366081509,1.05509231,2979.2,2978.9,2.3498]
[1720366081707,1.05509231,2979.2,2978.6,3.35005]
[1720366081909,1.05509231,2979.0,2978.6,3.35005]
[1720366082441,1.05509231,2979.0,2978.6,1.0]
[1720366082744,1.05552178,2978.9,2978.6,1.0]
[1720366082947,1.05552178,2979.0,2978.6,1.0]
[1720366083246,1.05552178,2978.9,2978.6,1.0]
[1720366083449,1.05552178,2979.0,2978.6,3.35008]
[1720366083609,1.05552178,2979.0,2978.6,5.70011]
[1720366084106,1.05552178,2979.0,2978.7,2.35001]
[1720366084307,1.05552178,2979.1,2978.7,0.470004]
[1720366084554,1.05552178,2979.1,2978.8,2.34986]
[1720366084754,1.05552178,2979.1,2978.9,2.34985]
[1720366084917,3.00736237,2979.3,2978.9,2.34985]
[1720366084918,1.05552178,2979.2,2978.9,2.34985]
[1720366085253,2.65552178,2979.3,2978.9,2.34985]
[1720366085624,1.05552178,2979.2,2978.9,2.34985]
[1720366085922,1.05537153,2979.2,2978.9,2.34985]
[1720366086134,1.05537153,2979.2,2978.8,2.34993]
[1720366086440,1.05537153,2979.0,2978.6,2.35008]
[1720366086743,1.05537153,2979.0,2978.7,2.34999]
[1720366086953,1.05537153,2979.1,2978.7,2.34999]
[1720366087106,4.05537153,2979.2,2978.7,2.34999]
[1720366087531,1.05537153,2979.1,2978.7,2.34999]
[1720366087840,1.05537153,2979.0,2978.6,2.35004]
[1720366088843,1.05537153,2979.0,2978.7,2.35]
[1720366089045,1.05545592,2979.1,2978.7,2.35]
[1720366089644,3.43755592,2978.9,2978.5,2.3501]
[1720366089941,1.05545592,2978.8,2978.5,2.3501]
[1720366090349,3.43755592,2978.9,2978.5,2.3501]
[1720366091642,3.43755592,2978.9,2978.3,4.70056]
[1720366091829,3.43755592,2978.9,2978.3,2.35028]
[1720366092030,3.43755592,2978.9,2978.4,2.35025]
[1720366092633,2.3821,2978.9,2978.4,2.35025]
[1720366092841,3.43732794,2978.9,2978.3,2.35028]
[1720366093038,3.43732794,2978.9,2978.4,2.35024]
[1720366093516,3.43732794,2978.9,2978.2,0.235033]
[1720366093713,1.05522794,2978.7,2977.9,2.3506]
[1720366093915,1.05522794,2978.7,2978.1,2.35045]
[1720366094119,1.05522794,2978.5,2978.1,2.35045]
[1720366094747,1.05522794,2978.5,2977.9,2.35058]
[1720366094949,2.3821,2978.4,2977.7,2.35077]
[1720366095249,1.05522794,2978.2,2977.7,4.70152]
[1720366095453,1.05522794,2978.3,2977.7,4.70152]
[1720366095747,3.43732794,2978.4,2977.8,2.35068]
[1720366095918,3.43732794,2978.4,2977.8,2.820823]
[1720366096746,2.3821,2978.4,2977.8,2.820823]
[1720366096939,2.3821,2978.4,2977.8,2.35068]
[1720366099125,2.3821,2978.4,2977.7,2.35075]
[1720366099126,2.3821,2978.4,2977.9,2.35064]
[1720366099552,3.55322794,2978.7,2978.2,2.3504]
[1720366099739,3.0,2978.6,2978.2,2.3504]
[1720366100535,3.00697058,2978.9,2978.4,2.35019]
[1720366100536,2.65522794,2978.9,2978.4,2.35019]
[1720366100738,1.6,2978.9,2978.4,2.35019]
[1720366100939,1.6,2978.9,2978.4,4.70039]
[1720366101335,1.6,2978.9,2978.5,2.35015]
[1720366101542,3.0,2979.1,2978.5,2.35015]
[1720366101737,1.05306901,2979.2,2978.6,2.35002]
[1720366101936,3.0,2979.2,2978.8,2.34993]
[1720366104873,3.0,2979.2,2978.6,2.35002]
[1720366105101,1.16298666,2979.1,2978.4,4.70039]
[1720366105239,6.66102533,2979.0,2978.4,4.70039]
[1720366105569,1.16302533,2978.9,2978.5,2.3501]
[1720366105773,1.16302533,2978.9,2977.9,2.4139]
[1720366105774,1.16302533,2978.9,2978.2,2.35035]
[1720366105978,1.16302533,2978.9,2978.3,2.35028]
[1720366106175,1.16302533,2978.9,2977.9,4.76452]
[1720366106361,1.16302533,2978.9,2978.4,2.35018]
[1720366106973,1.16302533,2978.9,2978.2,2.35035]
[1720366107683,1.16302533,2978.9,2978.4,2.35018]
[1720366108180,1.16308489,2978.8,2978.4,4.70037]
[1720366108359,4.6,2979.0,2978.4,4.70037]
[1720366108684,1.1630852,2978.9,2978.4,4.70037]
[1720366108901,1.1630852,2978.8,2978.4,4.70037]
[1720366109060,1.1630852,2978.9,2978.4,4.70037]
[1720366109256,1.16309774,2978.8,2978.4,4.70037]
[1720366109488,5.65301518,2979.0,2978.5,2.35017]
[1720366109788,5.65301518,2979.0,2978.6,2.35009]
[1720366109789,1.16303621,2978.9,2978.6,2.35009]
[1720366109997,3.0,2979.0,2978.6,2.35009]
[1720366110780,4.05301518,2979.2,2978.6,2.35009]
[1720366110781,3.0,2979.2,2978.8,2.34991]
[1720366110981,4.6,2979.3,2978.8,2.34991]
[1720366111191,1.16291571,2979.2,2978.9,2.34984]
[1720366111370,4.6,2979.3,2978.9,2.34984]
[1720366111892,1.16291451,2979.2,2978.9,2.34984]
[1720366112058,4.6,2979.3,2978.9,2.34984]
[1720366112259,1.16291727,2979.2,2978.9,2.34984]
[1720366112464,4.6,2979.3,2978.9,2.34984]
[1720366112697,1.16291798,2979.2,2978.9,2.34984]
[1720366112887,4.6,2979.3,2978.9,2.34984]
[1720366113083,1.16291573,2979.2,2979.0,2.34977]
[1720366113284,1.0536075,2979.5,2979.0,2.34977]
[1720366113471,1.16286222,2979.4,2979.0,2.34977]
[1720366113795,13.4636075,2979.6,2979.2,2.34959]
[1720366114096,1.16281054,2979.5,2979.2,2.34959]
[1720366114296,1.0536075,2979.6,2979.2,2.34959]
[1720366114466,1.16280828,2979.5,2979.2,2.34959]
[1720366114815,7.0075,2979.7,2979.2,2.34959]
[1720366115097,1.05397644,2979.5,2979.2,2.34959]
[1720366115282,1.16283932,2979.4,2979.2,2.34959]
[1720366115481,1.05397644,2979.5,2979.2,2.34959]
[1720366116383,1.05397644,2979.6,2979.2,2.34959]
[1720366116578,2.21678202,2979.5,2979.2,2.34959]
[1720366116783,1.05397644,2979.5,2979.2,2.34959]
[1720366119508,1.05397644,2979.5,2979.2,4.69914]
[1720366119680,1.05397644,2979.5,2979.3,2.34951]
[1720366121174,1.05557903,2979.5,2979.4,2.819366]
[1720366121416,2.65557903,2979.7,2979.4,4.69892]
[1720366121586,1.05557903,2979.6,2979.5,2.34938]
[1720366121913,2.65557903,2979.7,2979.5,2.34938]
[1720366122112,1.05557903,2979.6,2979.5,2.34938]
[1720366122488,2.65557903,2979.7,2979.5,2.34938]
[1720366122926,1.05557903,2979.6,2979.5,2.34938]
[1720366123286,2.65557903,2979.7,2979.5,2.34938]
[1720366124385,2.65546319,2979.7,2979.5,2.34938]
[1720366124584,1.6,2979.7,2979.5,2.34938]
[1720366124803,2.65546319,2979.7,2979.5,2.34938]
[1720366125521,1.6,2979.7,2979.5,2.34938]
[1720366125727,1.05546319,2979.8,2979.5,2.34938]
[1720366126017,1.05546319,2979.7,2979.5,2.34938]
[1720366127417,1.05546319,2979.7,2979.5,2.54938]
[1720366127662,1.05546319,2979.7,2979.5,0.2]
[1720366129907,1.05546319,2979.6,2979.5,0.2]
[1720366130300,1.05546319,2979.7,2979.5,0.2]
[1720366130501,1.05546319,2979.8,2979.5,0.2]
[1720366130909,1.05474502,2979.8,2979.5,0.2]
[1720366131286,1.05474502,2979.7,2979.5,0.4]
[1720366131485,2.21749498,2979.7,2979.5,0.4]
[1720366131793,1.05474502,2979.7,2979.5,0.4]
[1720366131997,5.21751177,2979.6,2979.5,0.4]
[1720366132195,5.21755166,2979.6,2979.5,0.4]
[1720366132403,2.21755166,2979.6,2979.5,0.4]
[1720366132731,1.16276675,2979.6,2979.5,0.4]
[1720366132938,2.21753893,2979.6,2979.5,0.4]
[1720366133266,1.05478491,2979.8,2979.5,0.4]
[1720366133570,1.05478491,2979.9,2979.5,5.06233]
[1720366133715,1.05478491,2980.0,2979.7,2.34922]
[1720366134639,2.21742189,2979.9,2979.5,5.09864]
[1720366134819,1.05478491,2979.9,2979.5,5.09864]
[1720366135029,1.05478491,2980.0,2979.6,2.34928]
[1720366135238,1.16264054,2979.9,2979.6,2.34928]
[1720366135416,1.05478491,2980.0,2979.6,2.34928]
[1720366135816,1.05478491,2980.0,2979.6,2.34927]
[1720366136023,2.2174078,2979.9,2979.5,2.74935]
[1720366136373,1.05478491,2979.9,2979.6,2.3493]
[1720366136664,4.05478491,2980.0,2979.6,2.3493]
[1720366136836,1.16264336,2979.9,2979.6,2.3493]
[1720366137163,4.05478491,2980.0,2979.6,2.3493]
[1720366137373,1.16264412,2979.9,2979.6,2.3493]
[1720366137743,1.16264412,2979.9,2979.5,2.74935]
[1720366137744,1.16266402,2979.8,2979.5,2.74933]
[1720366138077,1.05478491,2979.9,2979.5,2.74933]
[1720366138227,1.16267589,2979.8,2979.5,2.74933]
[1720366138426,1.05478491,2979.9,2979.5,2.74933]
[1720366138626,1.1626847,2979.8,2979.5,2.74933]
[1720366138857,1.05478491,2979.9,2979.5,2.74933]
[1720366139090,1.16267939,2979.8,2979.5,2.74933]
[1720366139407,3.0,2980.0,2979.5,5.09866]
[1720366139408,1.16267039,2979.7,2979.5,5.09866]
[1720366139606,4.05478491,2980.0,2979.6,2.34928]
[1720366139913,1.16259678,2979.9,2979.6,2.34928]
[1720366140117,3.0,2980.0,2979.6,2.34928]
[1720366140417,3.0,2980.0,2979.7,2.34922]
[1720366140694,1.16261018,2979.9,2979.7,2.34922]
[1720366141100,1.05406169,2980.1,2979.7,2.34922]
[1720366141299,5.21664625,2980.0,2979.5,2.74931]
[1720366141599,1.16258456,2979.9,2979.6,2.34928]
[1720366143170,1.16258456,2979.9,2979.7,2.34922]
[1720366144071,2.21664625,2979.9,2979.7,2.34922]
[1720366144266,1.16258456,2979.8,2979.7,2.34922]
[1720366144906,1.16258456,2979.9,2979.7,2.34922]
[1720366145106,4.05406169,2980.0,2979.7,2.34922]
[1720366145303,1.16257191,2979.9,2979.7,2.34922]
[1720366145483,4.05406169,2980.0,2979.7,2.34922]
[1720366145684,1.16256755,2979.9,2979.7,2.34922]
[1720366146001,4.05406169,2980.0,2979.7,2.34922]
[1720366146210,1.16256742,2979.9,2979.7,2.34922]
[1720366146394,4.05406169,2980.0,2979.7,2.34922]
[1720366146597,1.16257133,2979.9,2979.7,2.34922]
[1720366146780,4.05406169,2980.0,2979.7,2.34922]
[1720366146987,2.21665239,2979.9,2979.7,2.34922]
[1720366147174,1.05406169,2979.9,2979.8,2.34915]
[1720366147395,1.16256748,2979.9,2979.8,2.34915]
[1720366147612,2.21662917,2979.9,2979.8,2.34915]
[1720366147777,1.16256748,2979.9,2979.8,2.34915]
[1720366149398,2.21819963,2979.9,2979.8,2.34915]
[1720366149710,1.05562563,2979.9,2979.8,2.34915]
[1720366149917,1.16259311,2979.9,2979.8,2.34915]
[1720366150922,1.16259311,2979.9,2979.6,2.34926]
[1720366150923,2.21819154,2979.9,2979.6,2.34926]
[1720366151078,1.16256591,2979.8,2979.7,2.34921]
[1720366152094,1.1625649,2979.8,2979.7,2.34921]
[1720366152490,3.0,2980.0,2979.7,2.34921]
[1720366152776,2.2184468,2979.9,2979.7,2.34921]
[1720366153128,1.16258982,2979.8,2979.7,2.34921]
[1720366153474,1.05585698,2979.9,2979.7,2.34921]
[1720366153715,1.16258439,2979.8,2979.7,2.34921]
[1720366153917,1.05585698,2979.9,2979.7,2.34921]
[1720366154306,2.21844129,2979.8,2979.7,2.34921]
[1720366154626,1.05585698,2979.8,2979.7,2.34921]
[1720366155009,2.21843658,2979.8,2979.7,2.34921]
[1720366155536,2.21929746,2979.8,2979.7,2.34921]
[1720366156397,1.1625796,2979.8,2979.7,2.34921]
[1720366157300,3.67888035,2979.8,2979.5,3.69534]
[1720366157501,1.05701794,2979.6,2979.5,3.69534]
[1720366159008,1.05701794,2979.6,2979.5,2.74934]
[1720366159208,1.05701794,2979.6,2979.5,0.4]
[1720366159412,2.51633451,2979.6,2979.5,0.4]
[1720366159641,4.54248388,2979.6,2979.5,0.4]
[1720366159935,3.43395868,2979.6,2979.5,0.4]
[1720366160141,5.19647168,2979.6,2979.5,0.4]
[1720366160616,4.84404702,2979.6,2979.5,0.4]
[1720366161199,4.84404702,2979.6,2979.5,4.064925]
[1720366161437,2.2202292,2979.6,2979.5,6.009725]
[1720366161839,1.05757438,2979.6,2979.5,6.009725]
[1720366162400,1.41010554,2979.7,2979.6,2.3493]
[1720366162775,3.68122348,2979.7,2979.6,2.3493]
[1720366163106,3.68122348,2979.7,2979.5,0.946]
[1720366163304,3.68124166,2979.6,2979.4,2.3494]
[1720366163619,3.68138676,2979.5,2979.4,2.3494]
[1720366163815,1.1085744,2979.5,2979.4,2.3494]
[1720366164017,1.05791672,2979.5,2979.4,2.3494]
[1720366164425,1.05791672,2979.5,2979.4,4.69886]
[1720366164630,1.41010554,2979.7,2979.6,2.3493]
[1720366164813,3.68187279,2979.7,2979.6,2.3493]
[1720366165521,4.79028831,2979.7,2979.6,2.3493]
[1720366165745,4.79028831,2979.7,2979.5,0.2]
[1720366166047,2.51934926,2979.6,2979.5,2.54938]
[1720366166411,3.68200493,2979.6,2979.5,2.54938]
[1720366166842,2.2858,2979.5,2978.3,2.35032]
[1720366167036,1.76353559,2978.7,2978.5,2.35012]
[1720366167237,1.05854129,2978.8,2978.6,0.946]
[1720366167421,1.05854129,2978.7,2978.6,2.35009]
[1720366167613,1.05854129,2978.8,2978.7,2.35001]
[1720366167828,2.7978832,2978.8,2978.7,2.35001]
[1720366168130,4.31375721,2978.8,2978.7,3.29601]
[1720366168443,2.79713515,2978.8,2978.7,3.86733112]
[1720366168629,1.33182538,2978.8,2978.7,3.86733112]
[1720366168834,0.97920498,2978.8,2978.7,3.86733112]
[1720366169049,3.0,2979.4,2979.0,2.34976]
[1720366169356,1.4102947,2979.2,2979.0,2.34976]
[1720366169538,1.73888233,2979.1,2979.0,2.34976]
[1720366170222,3.14917703,2979.1,2979.0,2.34976]
[1720366170423,3.14917703,2979.1,2978.8,4.69979]
[1720366170660,1.0574596,2978.9,2978.0,2.3437]
[1720366170957,1.0574596,2978.9,2978.4,2.35024]
[1720366170958,0.70501027,2978.5,2978.4,2.35024]
[1720366172678,0.70501027,2978.5,2978.2,2.35035]
[1720366172952,0.70501027,2978.4,2978.2,2.35035]
[1720366173360,0.70501027,2978.4,2978.1,2.35047]
[1720366173655,0.70501027,2978.4,2978.1,3.29647]
[1720366174440,0.70501027,2978.5,2978.1,3.29647]
[1720366174761,0.20501027,2978.4,2977.9,2.3506]
[1720366174970,3.0,2978.4,2977.9,2.3506]
[1720366175123,0.70419572,2978.3,2977.9,2.3506]
[1720366176438,3.0,2978.4,2977.9,2.3506]
[1720366176439,3.70419572,2978.4,2977.9,2.3506]
[1720366176678,0.70419572,2978.3,2977.9,2.3506]
[1720366177202,0.70419572,2978.2,2977.6,2.35083]
[1720366177697,0.70419572,2978.1,2977.6,2.35083]
[1720366178412,5.35031,2978.4,2977.6,2.35083]
[1720366178699,0.70334718,2978.1,2977.6,2.35083]
[1720366179404,0.70334718,2978.2,2977.6,2.35083]
[1720366180396,0.70334718,2978.3,2977.6,2.35083]
[1720366181190,3.0,2978.0,2977.6,2.35083]
[1720366183064,2.30225263,2978.4,2977.8,2.35072]
[1720366183263,1.6,2978.4,2978.0,2.35055]
[1720366183796,1.6,2978.4,2977.9,2.41774296]
[1720366184169,1.6,2978.4,2978.0,2.35056]
[1720366184891,3.0,2978.2,2977.8,2.35065]
[1720366185797,3.0,2978.2,2977.6,4.70167]
[1720366187812,3.0,2978.2,2977.6,2.35083]
[1720366188168,3.0,2977.9,2977.6,2.35083]
[1720366188569,3.0,2977.9,2977.5,2.35096]
[1720366189711,3.0,2977.9,2977.6,2.35088]
[1720366190118,3.0,2977.9,2977.4,4.70196]
[1720366190411,3.0,2977.9,2977.5,2.35096]
[1720366191510,3.0,2977.9,2977.4,2.35097]
[1720366192923,2.2796,2977.8,2977.2,2.35116]
[1720366193214,2.2796,2977.8,2977.2,2.35115]
[1720366193725,2.2796,2977.8,2977.3,2.35107]
[1720366201311,2.2796,2977.8,2977.3,2.821292]
[1720366201712,1.16345495,2977.7,2977.3,2.821292]
[1720366202020,2.2796,2977.8,2977.3,2.821292]
[1720366202220,1.16347768,2977.7,2977.3,2.821292]
[1720366202420,3.0,2977.9,2977.4,2.35104]
[1720366202623,1.16345465,2977.8,2977.5,2.6330862]
[1720366202792,3.0,2977.9,2977.5,0.2821262]
[1720366202983,1.16343896,2977.8,2977.4,2.35104]
[1720366203191,3.0,2977.4,2976.8,5.3515]
[1720366203494,3.0,2977.4,2975.8,7.28]
[1720366203495,2.2689,2977.3,2976.6,2.35162]
[1720366203803,3.0,2976.8,2976.2,2.35193]
[1720366204000,1.16380456,2976.7,2976.0,2.35208]
[1720366204300,3.0,2976.8,2976.0,2.35208]
[1720366204631,3.0,2976.5,2975.8,2.35228]
[1720366204827,2.2689,2976.4,2975.8,4.70452]
[1720366205049,2.2689,2976.4,2975.9,2.35221]
[1720366206327,2.2689,2976.4,2975.6,2.35242]
[1720366206524,2.2689,2976.4,2975.8,2.35225]
[1720366207025,2.2689,2976.4,2975.6,2.35242]
[1720366207026,5.2689,2976.8,2975.9,0.0672036]
[1720366207235,3.0,2976.8,2976.4,2.35178]
[1720366207390,3.0,2977.1,2976.1,0.06719043]
[1720366207730,2.2689,2977.2,2976.7,2.35159]
[1720366207890,3.0,2977.3,2976.9,2.35142]
[1720366208316,3.0,2977.3,2976.5,2.35171]
[1720366208715,3.0,2976.8,2976.3,2.35189]
[1720366209120,3.0,2976.8,2976.3,4.70375]
[1720366209628,3.0,2976.8,2976.3,2.35186]
[1720366209830,3.0,2976.4,2975.4,2.3073]
[1720366209995,3.0,2976.4,2976.2,2.35197]
[1720366210194,3.0,2976.4,2976.2,4.70394]
[1720366210394,5.2689,2977.0,2976.4,2.35177]
[1720366210628,5.2689,2977.0,2976.4,4.70354]
[1720366210831,2.2689,2977.3,2976.9,2.35143]
[1720366211017,3.0,2977.1,2976.9,2.35143]
[1720366211498,3.0,2977.1,2976.7,2.35152]
[1720366211897,3.0,2977.1,2976.8,2.35151]
[1720366212196,3.0,2977.1,2976.9,2.35142]
[1720366213091,3.0,2977.1,2976.7,2.35152]
[1720366213931,3.0,2977.1,2976.7,4.70306]
[1720366214155,3.0,2977.1,2976.8,2.35151]
[1720366214470,3.05272119,2977.6,2976.5,2.35171]
[1720366214471,3.0,2976.8,2976.5,2.35171]
[1720366214635,3.0,2976.8,2976.6,2.35167]
[1720366214835,3.0,2976.8,2976.5,2.35171]
[1720366215164,3.0,2976.8,2976.1,2.3073]
[1720366215165,3.0,2976.4,2976.1,2.35201]
[1720366215462,3.0,2976.4,2976.2,2.35199]
[1720366215665,3.0,2976.4,2976.0,2.35207]
[1720366216035,5.2689,2976.4,2975.9,2.35219]
[1720366216234,3.0,2976.4,2976.1,2.35201]
[1720366216433,3.0,2976.4,2976.1,4.70402]
[1720366216635,3.0,2976.4,2976.1,2.35201]
[1720366218673,3.0,2976.4,2975.9,4.70438]
[1720366218981,3.0,2976.4,2976.0,2.35214]
[1720366219329,3.0,2976.4,2975.4,2.3073]
[1720366219535,3.0,2976.4,2975.8,2.3523]
[1720366220535,3.0,2976.4,2976.3,0.2]
[1720366224687,3.0,2976.4,2976.3,0.4]
[1720366226508,1.6,2976.5,2976.3,2.75188]
[1720366226994,1.6,2976.5,2976.3,5.10374]
[1720366227412,1.6,2976.5,2976.3,0.4]
[1720366229010,3.0,2976.4,2976.3,0.4]
[1720366232212,7.22537176,2976.4,2976.3,0.4]
[1720366233069,8.87505991,2976.4,2976.3,0.4]
[1720366233321,13.66256885,2976.4,2976.3,0.4]
[1720366233515,16.53373401,2976.4,2976.3,0.4]
[1720366234399,13.66256885,2976.4,2976.3,0.4]
[1720366234713,16.53395519,2976.4,2976.3,0.4]
[1720366235078,15.37102237,2976.4,2976.3,0.4]
[1720366235324,13.90410107,2976.4,2976.3,0.4]
[1720366235524,8.40908526,2976.4,2976.3,0.4]
[1720366235676,5.15260885,2976.4,2976.3,0.4]
[1720366235999,4.44988526,2976.4,2976.3,0.4]
[1720366236184,5.15245826,2976.4,2976.3,0.4]
[1720366236408,4.86677932,2976.4,2976.3,0.4]
[1720366236697,1.16405573,2976.4,2976.3,0.4]
[1720366236897,3.0,2976.4,2976.3,0.4]
[1720366238290,4.1639585,2976.4,2976.3,0.4]
[1720366238478,3.0,2976.4,2976.3,2.75191]
[1720366238682,0.70272359,2976.6,2976.3,2.75191]
[1720366238914,1.16392077,2976.5,2976.3,5.614158]
[1720366239213,3.0,2976.7,2976.5,2.35169]
[1720366239596,3.0,2976.7,2976.5,4.70339]
[1720366240178,0.70272359,2976.8,2976.5,2.35169]
[1720366240383,0.70272359,2977.0,2976.8,2.35151]
[1720366240594,3.70272359,2977.1,2976.8,2.35151]
[1720366241582,1.16372557,2977.0,2976.8,2.35151]
[1720366241786,3.70272359,2977.1,2976.8,2.35151]
[1720366242098,2.15314187,2977.0,2976.6,2.3516]
[1720366242305,0.70272359,2977.0,2976.7,2.35154]
[1720366243217,0.70272359,2976.9,2976.7,2.35154]
[1720366243930,0.70272359,2976.8,2976.5,2.35169]
[1720366244089,0.703802,2976.7,2976.5,2.35169]
[1720366244289,0.703802,2976.7,2976.3,2.75186]
[1720366244629,4.05414687,2976.8,2976.3,2.75186]
[1720366244630,0.703802,2976.6,2976.3,2.75186]
[1720366245000,0.703802,2976.5,2976.3,2.75186]
[1720366245724,3.703802,2976.4,2976.3,0.4]
[1720366245927,4.16395997,2976.4,2976.3,0.4]
[1720366246222,4.16395997,2976.4,2976.3,2.75191]
[1720366246523,3.70434157,2976.4,2976.3,2.75191]
[1720366246922,3.99047004,2976.4,2976.3,2.75191]
[1720366247429,3.70434157,2976.4,2976.3,2.75191]
[1720366247722,0.70434157,2976.4,2976.3,2.75191]
[1720366248117,0.70434157,2976.5,2976.3,5.10382]
[1720366248318,1.05414687,2976.6,2976.5,2.35175]
[1720366248500,0.70454946,2976.6,2976.5,2.35175]
[1720366249185,0.99083935,2976.6,2976.5,2.35175]
[1720366249386,1.40556213,2976.9,2976.7,2.35159]
[1720366249387,1.05414687,2976.8,2976.7,2.35159]
[1720366249621,0.9912774,2976.8,2976.7,4.70318]
[1720366249822,1.05414687,2976.9,2976.8,2.35151]
[1720366249823,0.70482185,2976.9,2976.8,2.35151]
[1720366250126,0.70482185,2977.0,2976.9,2.35143]
[1720366250320,0.99156475,2977.0,2976.9,2.35143]
[1720366250811,0.2867429,2977.0,2976.9,2.35143]
[1720366251010,0.9914358,2977.0,2976.9,2.35143]
[1720366251320,0.99134905,2977.0,2976.9,2.35143]
[1720366251524,0.70460615,2977.0,2976.9,5.45865768]
[1720366251730,0.70460615,2977.1,2977.0,2.35136]
[1720366251933,0.70460615,2977.2,2977.1,2.35128]
[1720366252113,0.28699639,2977.2,2977.1,2.35128]
[1720366252616,1.34114326,2977.2,2976.9,2.35138]
[1720366252949,0.70446951,2977.0,2976.9,2.35138]
[1720366253132,0.70446951,2977.0,2976.7,2.35156]
[1720366253336,0.70446951,2977.0,2976.7,4.70309]
[1720366253535,0.70446951,2976.9,2976.8,2.35148]
[1720366253698,0.70446951,2977.0,2976.8,2.35148]
[1720366253900,0.70441094,2977.0,2976.8,2.35148]
[1720366254103,0.70441094,2977.0,2976.7,2.35153]
[1720366254333,0.70441094,2976.9,2976.7,2.35153]
[1720366254743,0.70441094,2976.8,2976.3,3.288382]
[1720366255040,0.70441094,2976.8,2976.0,2.378]
[1720366255041,0.70441094,2976.7,2976.0,2.378]
[1720366255228,0.70441094,2976.8,2976.1,2.41924845]
[1720366255413,0.70441094,2976.9,2976.7,2.35159]
[1720366255622,0.70441094,2976.8,2976.7,2.35159]
[1720366255936,0.70441094,2976.8,2976.4,2.35182]
[1720366256142,0.99102674,2976.7,2976.5,2.35174]
[1720366256302,0.20445959,2976.7,2976.5,2.35174]
[1720366256836,1.05661642,2976.7,2976.5,2.35174]
[1720366257035,1.05661642,2976.8,2976.5,2.35174]
[1720366257238,1.34316949,2976.7,2976.5,2.35174]
[1720366257447,3.0,2976.6,2976.3,2.35185]
[1720366258034,4.05661642,2976.6,2976.3,2.35185]
[1720366258441,4.05661642,2976.6,2976.0,2.378]
[1720366258442,4.05661642,2976.6,2976.2,2.35196]
[1720366258619,1.34306443,2976.5,2976.2,2.35196]
[1720366258821,4.05661642,2976.6,2976.2,2.35196]
[1720366259018,0.28644238,2976.5,2976.2,2.35196]